Cogmind - Beta 17 @@@ ROGUE MODE // 2026.07.11 @ 18:31:09 Player: hubert Result: Destroyed by G-34 Mercenary with Small Laser Performance ------------- Evolutions (0) 0 Regions Visited (1) 200 Robots Destroyed (5) 25 Value Destroyed (193) 193 Prototype IDs (0) 0 Alien Tech Used (0) 0 Bonus (0) 0 TOTAL SCORE: 418 Bonus ------- None Cogmind --------- Core Integrity 0/250 Matter 266/300 Energy 100/100 System Corruption 0% Temperature Cool (6) Movement Core (350) Ox6 Location -10/Materials Parts ------- > --- POWER (1) -------- (None) > --- PROPULSION (2) --- (None) > --- UTILITY (2) ------ Large Storage Unit > --- WEAPON (2) ------- (None) > --- INVENTORY (15) --- Wheel Peak State ------------ > --- POWER ------------ Light Ion Engine > --- PROPULSION ------- Aluminum Leg Aluminum Leg > --- UTILITY ---------- Heat Sink Large Storage Unit > --- WEAPON ----------- EM Pulse Gun Assault Rifle > --- INVENTORY -------- Wheel Wheel EM Pulse Gun [Rating: 7] Favorites ----------- Power Light Ion Engine Engine Light Ion Engine Propulsion Aluminum Leg Leg Aluminum Leg Wheel Wheel Utility Heat Sink Device Heat Sink Storage Large Storage Unit Weapon Assault Rifle Energy Gun EM Pulse Gun Ballistic Gun Assault Rifle Build | -11 -10 ------- Run | Yrd Mat Slots Evolved . | . . Power . | . . Propulsion . | . . Utility . | . . Weapon . | . . Parts Attached 9 | 7 2 Power 1 | 1 . Engine 1 | 1 . Core . | . . Reactor . | . . Propulsion 3 | 2 1 Treads . | . . Leg 2 | 2 . Wheel 1 | . 1 Hover . | . . Flight . | . . Utility 2 | 1 1 Device 1 | 1 . Storage 1 | . 1 Processor . | . . Hackware . | . . Protection . | . . Artifact . | . . Weapon 3 | 3 . Energy Gun 2 | 2 . Energy Cannon . | . . Ballistic Gun 1 | 1 . Ballistic Cannon . | . . Launcher . | . . Special Weapon . | . . Impact Weapon . | . . Slashing Weapon . | . . Piercing Weapon . | . . Special Melee Weapon . | . . Unidentified Prototypes . | . . Parts Lost 8 | . 8 Power 1 | . 1 Propulsion 3 | . 3 Utility 1 | . 1 Weapon 3 | . 3 Highest Loss Streak 7 | . 7 To Critical Strikes . | . . Average Backups 2 | 2 2 Power . | . . Propulsion 1 | 1 1 Utility . | . . Weapon . | . . Tool/Special . | . . Unused Backups 1 | . 1 Power . | . . Propulsion 1 | . 1 Utility . | . . Weapon . | . . Tool/Special . | . . Average Slot Usage (%) 93 | . 93 Engine 12 | . 12 Leg 26 | . 26 Device 14 | . 14 Storage 13 | . 13 Energy Gun 11 | . 11 Ballistic Gun 13 | . 13 Peak Build Rating 7 | 6 7 Average Rating 5 | 3 6 On Entrance 3 | . 6 Avg Prop Armor Cover (%) . | . . Naked Turns . | . . Heaviest Build 28 | 8 28 Greatest Support 20 | 20 20 Greatest Overweight (x) 1 | . 1 Average Overweight (x) . | . . Largest Inventory Capacity 15 | 5 15 Average Capacity 12 | 5 14 Most Carried 4 | 4 4 Average Carried 2 | 2 2 Final Capacity 15 | 5 15 Final Carried 3 | 3 1 Class Distribution -------------------- 100% | Mutant Dominant Class ---------------- Mutant | -10/Materials Resources | -11 -10 ----------- Run | Yrd Mat Matter Collected 319 | 282 37 Remotely . | . . Salvage Created 225 | 39 186 Parts 4 | 1 3 Haulers Intercepted . | . . Recyclers Shooed . | . . Parts Field Recycled . | . . Retrieved Matter . | . . Parts Self-Destructed . | . . Prevented . | . . Parts Restored . | . . Kills | -11 -10 ------- Run | Yrd Mat Combat Hostiles Destroyed 5 | 1 4 Guns 4 | 1 3 AOE 1 | . 1 Classes Destroyed 1 | 1 . Grunt 5 | 1 4 Best Kill Streak 2 | 1 2 Combat Bots Only 2 | 1 2 Max Kills in Single Turn 1 | 1 1 Gunslinging . | . . Exploded 1 | . 1 Melee . | . . Uniques/NPCs Destroyed . | . . Combat | -11 -10 -------- Run | Yrd Mat Hostile Shots Fired 80 | 5 75 Missed 21 | 2 19 Hits 59 | 3 56 Projectile 59 | 3 56 Critical Strikes 3 | . 3 Damage Taken 798 | 34 764 Core 257 | . 257 Absorbed by Shields . | . . Core Remaining (%) 100 | 100 . Volleys Fired 33 | 4 29 Largest 2 | 2 2 Hottest 60 | 60 60 Shots Fired 50 | 8 42 Gun 50 | 8 42 Cannon . | . . Launcher . | . . Special . | . . Kinetic 31 | 4 27 Thermal . | . . Explosive . | . . Electromagnetic 19 | 4 15 Robot Hit Streak 5 | 3 5 Robot Miss Streak 3 | 1 3 Penetration Max . | . . Secondary Targets . | . . Shots Hit Robots 31 | 5 26 Core Hits 13 | 2 11 Critical Kills . | . . Critical Parts Destroyed . | . . Critical Strikes 2 | 1 1 Corrupt 2 | 1 1 Melee Attacks . | . . Impact . | . . Slashing . | . . Piercing . | . . Sneak Attacks . | . . Combat Hostiles . | . . Follow-up Attacks . | . . Damage Inflicted 492 | 68 424 Guns 422 | 68 354 Cannons . | . . Explosions 70 | . 70 Melee . | . . Ramming . | . . Kinetic 263 | 29 234 Thermal 70 | . 70 Explosive . | . . Electromagnetic 159 | 39 120 Impact . | . . Slashing . | . . Piercing . | . . Highest Corruption . | . . Average Corruption . | . . Corruption Purged . | . . Corruption Blocked . | . . Overload Shots . | . . Overflow Damage . | . . Projectiles . | . . Explosions . | . . Melee . | . . Knockbacks . | . . Impact . | . . Kinetic . | . . Secondary . | . . Self-Inflicted Damage 33 | . 33 Shots 1 | . 1 Rammed . | . . Targets Rammed . | . . Kicked . | . . Crushed . | . . Highest Temperature 18 | 18 17 Average Temperature 10 | 13 6 Received Heat Transfer 483 | 18 465 Siege Activations . | . . Martial Activations . | . . Shielding Activations . | . . Robots Disrupted . | . . Combat Hostiles . | . . Robots Corrupted . | . . Combat Hostiles . | . . Parts Fried . | . . Impact Corruptions . | . . Robots Melted . | . . Combat Hostiles . | . . Parts Melted . | . . Heat Transferred 50 | . 50 Parts Sabotaged . | . . Parts Stolen . | . . Parts Stripped . | . . Power Chain Reactions 1 | . 1 Alert | -11 -10 ------- Run | Yrd Mat Maximum Alert Level . | . . Low Security (%) 100 | 100 100 Level 1 . | . . Level 2 . | . . Level 3 . | . . Level 4 . | . . Level 5 . | . . High Security . | . . Max Security . | . . Peak Influence 62 | 20 62 Initial 6 | . 6 Average 9 | 1 11 Influence Increases 142 | 20 122 Destroy 0b10 Robot/C 100 | 20 80 Destroy Leader 20 | . 20 Disable Machine 15 | . 15 Destroy Structure 7 | . 7 Influence Decreases 142 | 10 132 Entered New Map 4 | . 4 Time Decay 78 | 10 68 Lost Part 60 | . 60 Squads Dispatched 2 | . 2 Investigation . | . . Extermination . | . . Reinforcement 2 | . 2 Assault . | . . Garrison . | . . Intercept . | . . Searches Triggered . | . . Construction Impeded . | . . Haulers Reinforced . | . . Active Scanning Responses . | . . Cargo Convoy Interrupts . | . . Stealth | -11 -10 --------- Run | Yrd Mat Distress Signals 1 | . 1 Communications Jammed . | . . Distress Signals . | . . Times Spotted 11 | 1 10 Peak Tracking Total 9 | 1 9 Tactical Retreats . | . . Traps | -11 -10 ------- Run | Yrd Mat Traps Triggered . | . . Indirectly . | . . Trap Hack Attempts . | . . Triggered . | . . Disarmed . | . . Reprogrammed . | . . Reused . | . . Traps Extracted . | . . Installed . | . . Triggered . | . . Machines | -11 -10 ---------- Run | Yrd Mat Machines Disabled 1 | . 1 Max in Single Turn 1 | . 1 Machines Repaired . | . . Machines Dismantled . | . . Machines Sabotaged . | . . Overloaded Fab Kills . | . . Hacking | -11 -10 --------- Run | Yrd Mat Machines Accessed . | . . Terminals . | . . Fabricators . | . . Repair Stations . | . . Recycling Units . | . . Scanalyzers . | . . Garrison Access . | . . Total Hacks . | . . Successful . | . . Failed . | . . Catastrophic . | . . Database Lockouts . | . . Manual . | . . Terminals . | . . Fabricators . | . . Repair Stations . | . . Recycling Units . | . . Scanalyzers . | . . Garrison Access . | . . Terminal Hacks . | . . Fabricator Hacks . | . . Repair Station Hacks . | . . Recycling Unit Hacks . | . . Scanalyzer . | . . Garrison Access Hacks . | . . Unauthorized Hacks . | . . Terminals . | . . Fabricators . | . . Repair Stations . | . . Recycling Units . | . . Scanalyzers . | . . Garrison Access . | . . Data Cores Recovered . | . . Used . | . . Hacking Detections . | . . Full Trace Events . | . . Feedback Events . | . . Feedback Blocked . | . . Robot Schematics Acquired . | . . Robots Built . | . . Authchips . | . . Time . | . . Total Robot Build Rating . | . . Part Schematics Acquired . | . . Parts Built . | . . Authchips . | . . Time . | . . Total Part Build Rating . | . . Part Studies Acquired . | . . Parts Repaired . | . . Time . | . . Parts Recycled . | . . Recycled Matter . | . . Retrieved Matter . | . . Retrieved Components . | . . Parts Scanalyzed . | . . Part Schematics Acquired . | . . Parts Damaged . | . . Bothacking | -11 -10 ------------ Run | Yrd Mat Used RIF Installer . | . . Robots Hacked . | . . Non-combat . | . . Combat . | . . Robot Hacks Applied . | . . Relay Couplers Released . | . . Fabnet Peak Effective % . | . . Robots Rewired . | . . Allies Hacked . | . . Hacks Repelled . | . . Allies | -11 -10 -------- Run | Yrd Mat Total Allies . | . . Largest Group . | . . Highest-Rated Group . | . . Highest-Rated Ally . | . . Total Orders . | . . Ally Attacks . | . . Total Damage . | . . Kills . | . . Allies Corrupted . | . . Allies Melted . | . . Intel | -11 -10 ------- Run | Yrd Mat Active Infowar (turns) . | . . Robot Analysis Total . | . . Derelict Logs Recovered . | . . Drone Launches . | . . Drone Recoveries . | . . Exploration | -11 -10 ------------- Run | Yrd Mat Turns Passed 477 | 111 366 Spaces Moved 221 | 79 142 Core 16 | 16 . Treads . | . . Legs 205 | 63 142 Wheels . | . . Hover . | . . Flight . | . . Fastest Speed 50 | 50 120 Average Speed 157 | 105 186 Slowest Speed 190 | 120 190 Overloaded Moves . | . . Propulsion Burnouts . | . . Robots Hopped . | . . Potential Cave-ins . | . . Cave-ins Triggered . | . . Exploration Rate (%) 19 | 9 29 Regions Visited 1 Branch Regions . Pre-discovered Areas . | . . Known Exits Taken . | . . Unknown Exits Taken 1 | 1 . Scrap Searched . | . . Spaces Dug . | . . Terrain Destroyed 6 | . 6 Melee . | . . Projectile . | . . AOE 6 | . 6 Terrain Rammed . | . . Walls Destroyed . | . . Machines Disabled . | . . Actions | -11 -10 --------- Run | Yrd Mat Total 299 | 98 201 Wait 26 | . 26 Move 220 | 78 142 Hop . | . . Pick Up 10 | 9 1 Fast Attach . | . . Attach 9 | 6 3 Detach . | . . Swap 1 | 1 . Drop . | . . Fire 33 | 4 29 Melee . | . . Ram . | . . Kick . | . . Crush . | . . Escape Stasis . | . . Rewire . | . . Trap . | . . Miscellaneous . | . . Route ------- -11/Scrapyard -10/Materials (discovered 1 exit: [*Min]) History --------- Turn | Location | Event 2 | -11/Scrapyard | Met Revision 17 83 | -11/Scrapyard | Discovered new exit (range 8) 112 | -11/Scrapyard | Entered Materials 269 | -10/Materials | Discovered new exit (range 8) 314 | -10/Materials | Build established: Mutant 446 | -10/Materials | Core integrity fell below 50% 472 | -10/Materials | Core integrity fell below 20% 478 | -10/Materials | Destroyed by G-34 Mercenary with Small Laser Last Messages --------------- K-01 Serf collects debris. K-01 Serf cleans the Nuclear Reactor. G-34 Mercenary destroyed. Aluminum Leg destroyed. K-01 Serf collects debris. Lgt. Ion Engine destroyed. K-01 Serf cleans the Nuclear Reactor. Assault Rifle destroyed. Critical hit (Burn: +37). K-01 Serf collects debris. G-34 Mercenary destroyed. K-01 Serf cleans the Nuclear Reactor. R-06 Scavenger collects Aluminum Leg. EM Pulse Gun destroyed. K-01 Serf collects debris. K-01 Serf cleans the Nuclear Reactor. Aluminum Leg destroyed. M-13 Machinist repairs G-34 Mercenary. Wheel destroyed. Heat Sink destroyed. Map ----- +----------------------------------------------------+ | ?????????????????? # #??####+#####????????? | | ???????????????????# #????# #???????????? | | ???????????????????# ###### #???????????? | | ???????????????????# + #???????????? | | ???????????????????#####/#### #???????????? | | ?????????????????????# ## #???????????? | | ?????????????????????# #???????????? | | ?????????????????????# T #???????????? | | ?????????????????????# #???????????? | | ?????????????????????# ######## ##???????????? | | ????????#????????????## ##??????# #????????????? | | ????????# ???########## #########+#????????????? | | ????????# ??#"""""""## # #????????????? | | ????????# ?#" |"! "## # "" ?????????????? | | ????????# ##" "## # T" ?????????????? | | ????????# # "" #????????????? | | ????????# < / #????????????? | | ????????# # """ #????????????? | | ????????###+## #### # """ ? ?????????????? | | ?????????????#########?## # """ ???????????????? | | ???????????????????????##+############???????????? | | ???????????????????????## ! t #???????????? | | ???????????????????????## * """ """ #???????????? | | ???????????????????????## Y[k""" """ #???????????? | | ???????????????????????##""gg""" """ #???????????? | | ????????????????????????#@g%m % #???????????? | | ????????????????????????########+#####???????????? | | ??????????????????????????????# ??????????????? | | ????????????????????????????? ????????????? | | ????????????????????????????## """ ??????????? | | ?????????????????????????????# "T" ????????? | | ?????????????????????????????# ! #??????? | | ?????????????????????????????# #??????? | | ?????????????????????????????# !!! #??????? | | ?????????????????????????????# !! #??????? | | ????????????????????????????? !! ?? #??????? | | ????????????????????????????? ?????????????? | | ????????????????????????????? ??????????????? | | ????????????????????????????## ??????????????? | | ?????????????????????????????## ??????????????? | | ??????????????????????????????? ???????????????? | | ??????????????????????????????? ???????????????? | | ?????????????????????????????????????????????????? | | ?????????????????????????????????????????????????? | | ?????????????????????????????????????????????????? | | ?????????????????????????????????????????????????? | | ?????????????????????????????????????????????????? | | ?????????????????????????????????????????????????? | | ?????????????????????????????????????????????????? | | ?????????????????????????????????????????????????? | +----------------------------------------------------+ Best States ------------- Heat Dissipation 35 Energy Generation 10 Energy Capacity 125 Matter Stores 300 Matter Capacity 300 Sight Range 16 Terrain Scan Density 10 Evasion (%) 55 Item Schematics ----------------- None Robot Schematics ------------------ None Fabricated ------------ Nothing Repaired ---------- Nothing Studied --------- None Alien Tech Used ----------------- None Achievements -------------- DATA ERROR: Steam Global Achievement% Challenges ------------ None Game ------ Seed UtilitySeismicJammer Manual? 0 Play Time 00:05:41 Cumulative 0.5 hours Start 2026.07.11 @ 18:25:46 End 2026.07.11 @ 18:31:09 Sessions 1 Manual Loads 0 Difficulty Rogue Special Mode None Game No. 2 Rogue 2 Adventurer 0 Explorer 0 Win Type - Total 0 Types 0/0/0/0/0/0/0/0/0/0 Lore% 0 Gallery% 1 Achievement% 1 Wizard Run 0 Options --------- Layout 1 ASCII 0 Keyboard 0 Movement Mouse Keybinds 0 Fullscreen 1 Font 48/Smallcaps Map View 50x35 Zoom Use 3% Tactical HUD 0 Map Filters NONE Filters NONE Steam 1 RUN: 9a9eadfd-25cb-41da-8827-3819a04ea775